bitfinex-derivatives/quotes_BNBF0:USTF0_20250101
["timestamp","ask_amount","ask_price","bid_price","bid_amount"]
[1735727848248,1.7581251,708.0,707.1,1.04192888]
[1735727849148,1.7581251,708.0,707.11,1.04192888]
[1735727850246,0.28248587,708.0,707.11,1.04192888]
[1735727850446,0.28248587,708.0,707.12,1.04192888]
[1735727851649,0.28248587,708.0,707.09,1.088]
[1735727851650,0.28248587,708.0,707.13,1.04192888]
[1735727852851,0.28248587,708.0,707.09,1.088]
[1735727854150,0.28248587,708.0,707.1,1.131]
[1735727854551,0.28248587,708.0,707.1,2.272]
[1735727857155,0.28248587,708.0,707.1,3.237]
[1735727861959,0.28248587,708.0,707.11,1.181]
[1735727876662,0.28248587,708.0,707.12,0.931]
[1735727880165,0.28248587,708.0,707.13,1.116]
[1735727884968,0.28248587,708.0,707.13,2.22]
[1735727891580,0.28248587,708.0,707.15,1.04192888]
[1735727892575,0.28248587,708.0,707.13,2.22]
[1735727893581,0.28248587,708.0,707.14,2.262]
[1735727897285,0.28248587,708.0,707.15,1.04192888]
[1735727898184,0.28248587,708.0,707.16,1.04192888]
[1735727899481,0.28248587,708.0,707.17,0.865]
[1735727900585,0.28248587,708.0,707.18,1.04192888]
[1735727901883,0.28248587,708.0,707.17,0.865]
[1735727908593,0.28248587,708.0,707.17,1.90692888]
[1735727911495,0.28248587,708.0,707.19,1.04192888]
[1735727912596,0.28248587,708.0,707.24,1.04192888]
[1735727912797,0.28248587,708.0,707.24,2.12292888]
[1735727912995,1.47566009,707.99,707.24,2.12292888]
[1735727913696,1.47566009,707.99,707.24,1.081]
[1735727920000,1.47566009,707.99,707.25,1.092]
[1735727920601,0.28249385,707.98,707.25,1.092]
[1735727921098,0.260185,707.97,707.25,1.092]
[1735727921293,0.28250183,707.96,707.25,1.092]
[1735727924701,0.28250183,707.96,707.26,0.827]
[1735727926108,0.28250183,707.96,707.26,2.009]
[1735727934909,0.28250183,707.96,707.26,2.917]
[1735727935609,0.28250183,707.96,707.26,2.09]
[1735727936813,0.28250183,707.96,707.27,1.084]
[1735727940713,0.28250183,707.96,707.28,1.04]
[1735727954518,0.28250183,707.96,707.27,1.084]
[1735727957517,0.28250183,707.96,707.28,1.113]
[1735727967024,0.28250183,707.96,707.29,1.13]
[1735727968924,0.28250183,707.96,707.29,2.341]
[1735727970228,0.26014004,707.95,707.29,2.341]
[1735727970429,0.28250183,707.96,707.29,3.326]
[1735727970629,0.26014302,707.95,707.29,3.326]
[1735727973629,0.28250183,707.96,707.29,3.326]
[1735727973826,0.26015519,707.95,707.29,3.326]
[1735727975731,0.28250183,707.96,707.29,3.326]
[1735727976233,1.47574353,707.94,707.29,3.326]
[1735727980136,1.47574353,707.94,707.29,2.196]
[1735727981237,1.47574353,707.94,707.3,0.954]
[1735727985829,0.28250183,707.96,707.3,0.954]
[1735727986236,0.00050183,707.96,707.3,0.954]
[1735727996141,0.00050183,707.96,707.31,1.072]
[1735727996335,1.47567573,707.95,707.31,1.072]
[1735728001143,0.26018235,707.94,707.31,1.072]
[1735728002443,0.26018841,707.93,707.31,1.072]
[1735728002643,0.26018841,707.92,707.31,1.072]
[1735728002843,0.26018841,707.91,707.31,1.072]
[1735728003046,0.2601971,707.9,707.31,1.072]
[1735728003241,0.2601971,707.89,707.31,1.072]
[1735728003448,0.2601971,707.88,707.31,1.072]
[1735728003647,0.2601971,707.87,707.31,1.072]
[1735728003942,1.05706371,707.9,707.31,1.072]
[1735728004246,0.26018976,707.89,707.31,1.072]
[1735728004747,0.26018976,707.88,707.31,1.072]
[1735728004950,0.26018976,707.87,707.31,1.072]
[1735728005148,0.26020009,707.86,707.31,1.072]
[1735728005448,0.26020009,707.85,707.31,1.072]
[1735728005641,0.26020009,707.84,707.31,1.072]
[1735728005844,1.05706371,707.9,707.31,1.072]
[1735728006042,0.26020194,707.89,707.31,1.072]
[1735728006749,0.26020194,707.88,707.31,1.072]
[1735728007048,0.26020194,707.87,707.31,1.072]
[1735728007242,0.26020194,707.86,707.31,1.982]
[1735728007445,0.26020194,707.85,707.31,1.982]
[1735728007642,0.26020194,707.84,707.31,1.982]
[1735728007843,0.26020194,707.83,707.31,1.982]
[1735728008042,0.26020194,707.82,707.31,1.982]
[1735728008247,1.47592086,707.87,707.31,1.982]
[1735728008544,0.26020848,707.86,707.31,1.982]
[1735728008852,1.47592086,707.87,707.31,1.982]
[1735728009850,1.47592086,707.87,707.31,3.226]
[1735728011445,1.47592086,707.87,707.31,4.252]
[1735728027061,0.28254174,707.86,707.31,4.252]
[1735728035566,0.26025144,707.85,707.31,4.252]
[1735728035765,0.28254972,707.84,707.31,4.252]
[1735728035973,0.26025144,707.83,707.31,4.252]
[1735728037165,0.26025354,707.82,707.31,4.252]
[1735728037365,0.26025354,707.81,707.31,4.252]
[1735728037570,0.26025354,707.8,707.31,4.252]
[1735728037766,0.28254972,707.84,707.31,4.252]
[1735728037966,0.26025349,707.83,707.31,4.252]
[1735728038367,1.73633607,707.83,707.31,4.252]
[1735728038568,0.26025349,707.82,707.31,4.252]
[1735728039373,0.2825617,707.81,707.31,4.252]
[1735728039574,0.26025349,707.8,707.31,4.252]
[1735728039771,0.26025019,707.79,707.31,4.252]
[1735728039967,0.26025019,707.78,707.31,4.252]
[1735728040170,0.26025019,707.77,707.31,4.252]
[1735728040367,0.26025019,707.76,707.31,4.252]
[1735728040572,0.2825617,707.81,707.31,4.252]
[1735728040573,0.26025019,707.75,707.31,4.252]
[1735728040773,0.26025019,707.74,707.31,4.252]
[1735728040975,0.26025019,707.73,707.31,4.252]
[1735728041174,0.2825617,707.81,707.31,4.252]
[1735728041373,0.26023249,707.8,707.31,4.252]
[1735728042380,0.2602205,707.79,707.31,4.252]
[1735728042580,0.2602205,707.78,707.31,4.252]
[1735728042875,0.2602205,707.77,707.31,4.252]
[1735728043079,0.26022037,707.76,707.31,4.252]
[1735728043279,0.26022037,707.75,707.31,4.252]
[1735728043479,0.26022037,707.74,707.31,4.252]
[1735728043675,0.26022037,707.73,707.31,4.252]
[1735728043882,0.2825617,707.81,707.31,4.252]
[1735728044174,0.26022093,707.8,707.31,4.252]
[1735728044579,0.2825617,707.81,707.31,4.252]
[1735728050584,0.26025895,707.8,707.31,4.252]
[1735728051283,0.2602632,707.79,707.31,4.252]
[1735728051484,0.2602632,707.78,707.31,4.252]
[1735728051778,0.2602632,707.77,707.31,4.252]
[1735728051985,0.2602632,707.76,707.31,4.252]
[1735728052183,0.2825617,707.81,707.31,4.252]
[1735728052184,1.05910501,707.74,707.31,4.252]
[1735728052383,0.2602632,707.73,707.31,4.252]
[1735728052582,1.73647623,707.73,707.31,4.252]
[1735728052882,0.2602632,707.72,707.31,4.252]
[1735728053279,0.26028252,707.71,707.31,4.252]
[1735728053477,0.26028252,707.7,707.31,4.252]
[1735728053681,0.26028252,707.69,707.31,4.252]
[1735728053882,0.26028252,707.68,707.31,4.252]
[1735728054079,0.26028252,707.67,707.31,4.252]
[1735728054286,2.53531804,707.73,707.31,4.252]
[1735728054584,0.26028179,707.72,707.31,4.252]
[1735728055586,1.05910501,707.71,707.31,4.252]
[1735728055788,0.26028179,707.7,707.31,4.252]
[1735728056882,1.05910501,707.59,707.31,4.252]
[1735728057085,0.26028179,707.58,707.31,4.252]
[1735728058684,0.26028179,707.57,707.31,4.252]
[1735728058886,0.26028179,707.56,707.31,4.252]
[1735728059084,1.05910501,707.62,707.31,4.252]
[1735728059289,0.26028507,707.61,707.31,4.252]
[1735728059790,0.26028507,707.6,707.31,4.252]
[1735728059990,0.26028507,707.59,707.31,4.252]
[1735728060290,0.26028507,707.58,707.31,4.252]
[1735728060491,0.26028507,707.57,707.31,4.252]
[1735728060691,1.05910501,707.69,707.31,4.252]
[1735728060890,0.26030102,707.68,707.31,4.252]
[1735728062493,1.05910501,707.69,706.52,1.04470573]
[1735728063095,1.05910501,707.69,706.02,1.25364688]
[1735728063096,1.47621303,707.73,705.88,1.04470573]
[1735728063888,1.47621303,707.73,705.89,0.93]
[1735728068490,0.26036324,707.72,705.89,0.93]
[1735728069291,0.26036324,707.72,706.15,1.04470573]
[1735728069697,0.26036324,707.72,706.15,2.26470573]
[1735728070197,0.26036324,707.72,706.15,1.22]
[1735728070998,0.2603624,707.71,706.15,1.22]
[1735728071200,0.2603624,707.7,706.15,1.22]
[1735728071399,0.2603624,707.69,706.15,1.22]
[1735728071600,1.47621303,707.73,706.15,1.22]
[1735728071601,0.2603624,707.68,706.15,1.22]
[1735728071799,0.2603624,707.67,706.15,1.22]
[1735728071999,0.2603624,707.66,706.15,1.22]
[1735728072201,0.2603624,707.65,706.15,1.22]
[1735728072501,0.2603624,707.64,706.15,1.22]
[1735728072702,0.2603624,707.63,706.15,1.22]
[1735728073503,1.47701188,707.64,706.15,1.22]
[1735728073700,0.26036537,707.63,706.15,1.22]
[1735728074198,1.47701188,707.64,706.15,1.22]
[1735728074401,0.2603595,707.63,706.15,1.22]
[1735728075402,0.2603595,707.63,706.15,2.26470573]
[1735728076705,0.2603595,707.63,706.15,1.22]
[1735728077799,0.2603595,707.63,706.15,2.26470573]
[1735728078706,0.2603595,707.63,706.17,1.04470573]
[1735728079003,0.26037699,707.62,706.18,1.132]
[1735728079200,0.26037699,707.61,706.18,1.132]
[1735728079404,0.26037699,707.6,706.18,1.132]
[1735728079605,0.26037699,707.59,706.18,1.132]
[1735728079904,0.26037699,707.58,706.18,1.132]
[1735728080101,0.26037699,707.57,706.18,1.132]
[1735728080298,0.26037699,707.56,706.18,1.132]
[1735728080498,0.26037699,707.55,706.18,1.132]
[1735728080699,0.26037699,707.54,706.18,1.132]
[1735728080905,0.26037699,707.53,706.18,1.132]
[1735728081099,0.26037699,707.52,706.18,1.132]
[1735728081298,0.26037699,707.51,706.18,1.132]
[1735728081505,0.26038469,707.5,706.18,1.132]
[1735728081706,0.26038469,707.49,706.18,1.132]
[1735728081901,1.47701188,707.64,706.18,1.132]
[1735728081902,0.26038469,707.48,706.18,1.132]
[1735728082107,0.26038469,707.47,706.18,1.132]
[1735728082307,0.26038469,707.46,706.18,1.132]
[1735728082606,0.26038469,707.45,706.18,1.132]
[1735728082803,0.26038469,707.44,706.18,1.132]
[1735728083005,0.26038469,707.43,706.18,1.132]
[1735728083204,1.47715817,707.45,706.18,1.132]
[1735728083402,0.26038432,707.44,706.18,1.132]
[1735728084205,0.26038432,707.44,706.18,2.061]
[1735728086705,0.26042655,707.43,706.18,2.061]
[1735728086905,0.26042655,707.42,706.18,2.061]
[1735728087103,0.26042655,707.41,706.18,2.061]
[1735728087310,0.26042655,707.4,706.18,2.061]
[1735728087604,0.26042655,707.39,706.18,2.061]
[1735728087809,0.26042655,707.38,706.18,2.061]
[1735728088009,0.26042655,707.37,706.18,2.061]
[1735728088308,0.26042655,707.36,706.18,2.061]
[1735728088505,0.26042655,707.35,706.18,2.061]
[1735728088707,0.26042655,707.34,706.18,2.061]
[1735728088905,0.26042655,707.33,706.18,2.061]
[1735728089109,0.26042655,707.32,706.18,2.061]
[1735728089405,0.26042912,707.31,706.18,2.061]
[1735728089609,0.26042912,707.3,706.18,2.061]
[1735728089809,0.26042912,707.29,706.18,2.061]
[1735728090009,0.26043053,707.28,706.18,2.061]
[1735728090205,0.26043053,707.27,706.18,2.061]
[1735728090407,0.26043053,707.26,706.18,2.061]
[1735728090609,0.26043053,707.25,706.18,2.061]
[1735728090810,0.26043053,707.24,706.18,2.061]
[1735728091011,0.26043053,707.23,706.18,2.061]
[1735728091312,0.26043053,707.22,706.18,2.061]
[1735728091611,2.53626318,707.45,706.18,2.061]
[1735728091612,0.26043053,707.21,706.18,2.061]
[1735728091811,0.26043053,707.2,706.18,2.061]
[1735728092011,1.05910501,707.44,706.18,2.061]
[1735728092213,0.26043537,707.43,706.18,2.061]
[1735728092916,1.05910501,707.42,706.18,2.061]
[1735728093107,0.26043537,707.41,706.18,2.061]
[1735728094213,1.31954038,707.41,706.18,2.061]
[1735728094513,0.26043537,707.4,706.18,2.061]
[1735728095215,1.05910501,707.33,706.18,2.061]
[1735728095415,0.26043537,707.32,706.18,2.061]
[1735728095808,1.47743515,707.31,706.18,2.061]
[1735728096014,0.26043537,707.3,706.18,2.061]
[1735728097413,0.26043537,707.3,706.18,3.10570573]
[1735728098013,0.26044186,707.29,706.18,3.10570573]
[1735728098212,0.26044186,707.28,706.18,3.10570573]
[1735728098414,0.26044186,707.27,706.18,3.10570573]
[1735728098614,1.47743515,707.31,706.18,3.10570573]
[1735728098615,0.26044186,707.26,706.18,3.10570573]
[1735728098812,0.26044186,707.25,706.18,2.061]
[1735728099011,0.26044186,707.24,706.18,2.061]
[1735728099212,1.47743515,707.31,706.18,2.061]
[1735728099213,0.26044186,707.3,706.18,2.061]
[1735728099413,0.26044186,707.23,706.18,2.061]
[1735728099621,0.26044186,707.22,706.18,2.061]
[1735728099818,0.26044186,707.21,706.18,2.061]
[1735728100023,1.47743515,707.31,706.18,2.061]
[1735728100024,0.26047381,707.3,706.18,2.061]
[1735728100214,0.26047381,707.29,706.18,2.061]
[1735728100413,0.26047381,707.28,706.18,2.061]
[1735728100620,0.26047342,707.27,706.18,2.061]
[1735728100819,0.26047342,707.26,706.18,2.061]
[1735728101119,0.26047342,707.25,706.18,2.061]
[1735728101319,0.26047342,707.24,706.18,2.061]
[1735728101618,0.26047342,707.23,706.18,2.061]
[1735728101818,0.26047342,707.22,706.18,2.061]
[1735728102020,1.47743515,707.31,706.18,2.061]
[1735728102021,0.26047342,707.21,706.18,2.061]
[1735728102213,0.26047342,707.2,706.18,2.061]
[1735728102412,0.26047342,707.19,706.18,2.061]
[1735728102613,0.26047342,707.18,706.18,2.061]
[1735728102816,0.26047342,707.17,706.18,2.061]
[1735728103014,0.26047342,707.16,706.18,2.061]
[1735728103214,0.26047342,707.15,706.18,2.061]
[1735728103418,1.47743515,707.31,706.18,2.061]
[1735728103619,0.2605002,707.3,706.18,2.061]
[1735728105019,1.47743515,707.31,706.18,2.061]
[1735728105221,0.2605058,707.3,706.18,2.061]
[1735728105718,1.47743515,707.31,706.18,2.061]
[1735728105918,0.26050703,707.3,706.18,2.061]
[1735728107924,0.26050903,707.29,706.18,2.061]
[1735728108124,0.26050903,707.28,706.18,2.061]
[1735728108326,0.26050903,707.27,706.18,2.061]
[1735728108520,0.26050903,707.26,706.18,2.061]
[1735728108723,0.26050903,707.25,706.18,2.061]
[1735728108921,0.26050903,707.24,706.18,2.061]
[1735728109118,0.26050903,707.23,706.18,3.43]
[1735728109322,0.26050903,707.22,706.18,3.43]
[1735728109524,0.26050903,707.21,706.18,3.43]
[1735728110120,0.26048807,707.2,706.18,3.43]
[1735728110320,0.26048807,707.21,706.18,3.43]
[1735728110521,0.26048807,707.2,706.18,3.43]
[1735728110722,0.26048807,707.19,706.18,3.43]
[1735728110929,1.47765472,707.22,706.18,3.43]
[1735728111126,0.26046919,707.21,706.18,3.43]
[1735728113124,1.47765472,707.22,706.18,3.43]
[1735728113324,0.26047238,707.21,706.18,3.43]
[1735728113725,1.47765472,707.22,706.18,3.43]
[1735728113927,0.26049933,707.21,706.18,3.43]
[1735728115435,0.28280542,707.2,706.18,3.43]
[1735728116135,0.26050051,707.19,706.18,3.43]
[1735728116535,0.28280542,707.2,706.18,3.43]
[1735728116731,0.26050131,707.19,706.18,3.43]
[1735728116929,0.28281342,707.18,706.18,3.43]
[1735728117735,0.26050338,707.17,706.18,3.43]
[1735728120839,0.28281342,707.18,706.18,3.43]
[1735728121037,0.26050179,707.17,706.18,3.43]
[1735728121338,0.28282142,707.16,706.18,3.43]
[1735728121634,0.26050218,707.15,706.18,3.43]
[1735728122238,1.47773315,707.14,706.18,3.43]
[1735728122439,0.26050098,707.13,706.18,3.43]
[1735728125636,1.47773315,707.14,706.18,3.43]
[1735728125840,0.26049334,707.13,706.18,3.43]
[1735728128343,0.26050301,707.12,706.18,3.43]
[1735728128537,0.26050301,707.11,706.18,3.43]
[1735728128737,1.47773315,707.14,706.18,3.43]
[1735728128738,0.26050301,707.1,706.18,3.43]
[1735728128940,1.05985948,707.13,706.18,3.43]
[1735728129137,0.26050339,707.12,706.18,3.43]
[1735728129743,1.05985948,707.09,706.18,3.43]
[1735728129939,0.26050339,707.08,706.18,3.43]
[1735728131043,1.05985948,707.08,706.18,3.43]
[1735728131245,0.26050295,707.07,706.18,3.43]
[1735728132239,0.26050295,707.06,706.18,3.43]
[1735728132440,0.26050295,707.05,706.18,3.43]
[1735728132644,0.26050295,707.04,706.18,3.43]
[1735728132845,1.47776976,707.06,706.18,3.43]
[1735728132846,0.26050295,707.03,706.18,3.43]
[1735728133046,1.47776976,707.06,706.18,3.43]
[1735728133243,0.26050268,707.05,706.18,3.43]
[1735728133747,0.26050355,707.04,706.18,3.43]
[1735728133949,0.26050355,707.03,706.18,3.43]
[1735728134246,0.26050355,707.02,706.18,3.43]
[1735728134446,1.47776976,707.06,706.18,3.43]
[1735728134747,0.26050454,707.05,706.18,3.43]
[1735728135543,1.47776976,707.06,706.18,3.43]
[1735728141252,0.45376976,707.06,706.18,3.43]
[1735728141446,0.28282142,707.16,706.18,3.43]
[1735728141851,0.26048013,707.15,706.18,3.43]
[1735728142052,0.28282142,707.16,706.18,3.43]
[1735728143550,0.26047411,707.15,706.18,3.43]
[1735728144152,1.05985948,707.11,706.19,1.04834278]
[1735728144449,0.26047411,707.1,706.19,1.04834278]
[1735728145150,0.26047411,707.1,706.2,1.04834278]
[1735728145349,0.26047411,707.09,706.2,1.04834278]
[1735728145547,0.26047411,707.08,706.21,0.929]
[1735728145748,0.26047411,707.07,706.21,0.929]
[1735728145950,1.05985948,707.13,706.21,0.929]
[1735728146151,0.2604714,707.12,706.21,0.929]
[1735728147057,1.05985948,707.13,706.21,0.929]
[1735728147556,1.05985948,707.1,706.21,1.97734278]
[1735728148955,0.28282142,707.16,706.26,1.04834278]
[1735728149154,0.26045129,707.15,706.26,1.04834278]
[1735728149354,0.28282142,707.16,706.26,1.04834278]
[1735728149858,0.28282142,707.16,706.21,0.929]
[1735728151451,0.28282142,707.16,706.22,1.132]
[1735728168674,0.28282142,707.16,706.21,0.929]
[1735728168873,0.00082142,707.16,706.21,0.929]
[1735728169674,0.00082142,707.16,706.22,1.04834278]
[1735728170368,1.47702233,707.58,706.22,1.04834278]
[1735728170369,0.26034334,707.57,706.22,1.04834278]
[1735728170567,1.47702233,707.58,706.22,1.04834278]
[1735728170777,1.47702233,707.58,706.23,1.33153664]
[1735728171970,1.47702233,707.58,706.25,1.04834278]
[1735728172975,1.47702233,707.58,706.24,1.04834278]
[1735728173469,0.26034055,707.57,706.24,1.04834278]
[1735728173675,1.47702233,707.58,706.24,1.04834278]
[1735728173872,0.26034,707.57,706.24,1.04834278]
[1735728174070,0.26034,707.57,706.23,1.33153664]
[1735728175272,0.26034,707.57,706.23,0.28319386]
[1735728175673,0.26034,707.57,706.24,0.929]
[1735728177077,0.26035631,707.56,706.24,0.929]
[1735728177272,0.26035631,707.55,706.24,0.929]
[1735728177474,0.26035631,707.54,706.24,0.929]
[1735728177674,1.47702233,707.58,706.24,0.929]
[1735728177871,0.26035445,707.57,706.24,0.929]
[1735728179174,0.2603607,707.56,706.24,0.929]
[1735728179480,0.2603607,707.55,706.24,0.929]
[1735728179778,0.2603607,707.54,706.24,0.929]
[1735728179979,0.2603607,707.53,706.24,0.929]
[1735728180181,0.2603607,707.52,706.24,0.929]
[1735728180381,0.2603607,707.51,706.24,0.929]
[1735728180575,1.47702233,707.58,706.31,1.04834278]
[1735728180778,0.26034867,707.57,706.31,1.04834278]
[1735728181078,1.477038,707.57,706.31,1.04834278]
[1735728181278,0.2603635,707.56,706.31,1.04834278]
[1735728181479,0.28266553,707.55,706.31,1.04834278]
[1735728181681,0.26037586,707.54,706.25,1.04834278]
[1735728182785,1.32023534,707.54,706.31,1.04834278]
[1735728182983,0.54304938,707.53,706.31,1.04834278]
[1735728183183,0.26037586,707.52,706.31,1.04834278]
[1735728183583,0.26039566,707.51,706.31,1.04834278]
[1735728183778,0.28267352,707.53,706.31,1.04834278]
[1735728183983,0.28267352,707.53,706.24,0.929]
[1735728186379,0.26038842,707.52,706.24,0.929]
[1735728186780,0.28267352,707.53,706.24,0.929]
[1735728188686,0.28267352,707.53,706.25,1.132]
[1735728191088,0.26035803,707.52,706.25,1.132]
[1735728191587,0.26035796,707.51,706.25,1.132]
[1735728191787,0.26035796,707.5,706.25,1.132]
[1735728192088,0.26035796,707.49,706.25,1.132]
[1735728192388,0.26035509,707.48,706.25,1.132]
[1735728192783,0.26035509,707.48,706.37,1.04834278]
[1735728193885,0.26035509,707.48,706.38,1.04834278]
[1735728194886,0.28267352,707.53,706.39,0.929]
[1735728195087,0.26032556,707.52,706.39,0.929]
[1735728195484,0.26032556,707.52,706.43,1.04834278]
[1735728196588,0.26032556,707.52,706.48,1.04834278]
[1735728196989,0.26032229,707.51,706.48,1.04834278]
[1735728197290,0.26032229,707.5,706.48,1.04834278]
[1735728197488,0.28267352,707.53,706.48,1.04834278]
[1735728197696,0.28267352,707.53,706.49,1.04834278]
[1735728197697,0.26032579,707.52,706.49,1.04834278]
[1735728199088,0.28267352,707.53,706.49,1.04834278]
[1735728200996,0.28267352,707.53,706.6,1.04834278]
[1735728202000,0.28267352,707.53,706.57,1.04834278]
[1735728203193,0.28267352,707.53,706.56,1.04834278]
[1735728204192,0.28267352,707.53,706.52,1.04834278]
[1735728205192,0.28267352,707.53,706.5,1.04834278]
[1735728206097,1.47666717,707.77,706.5,1.04834278]
[1735728206299,1.47666717,707.77,706.5,2.49034278]
[1735728206492,1.47666717,707.77,706.5,1.442]
[1735728207098,0.26025222,707.76,706.5,1.442]
[1735728207299,1.47666717,707.77,706.5,1.442]
[1735728208097,1.47666717,707.77,706.5,2.49034278]
[1735728208498,0.26025062,707.76,706.5,2.49034278]
[1735728209000,1.47666717,707.77,706.5,2.49034278]
[1735728209303,1.47666717,707.77,706.5,1.442]
[1735728210497,0.26024984,707.76,706.5,1.442]
[1735728211193,0.26024984,707.75,706.5,2.49034278]
[1735728211497,0.26024984,707.74,706.5,2.49034278]
[1735728211695,1.47646878,707.85,706.5,2.49034278]
[1735728211895,0.26022521,707.84,706.5,2.49034278]
[1735728212100,0.26022521,707.84,706.53,1.04834278]
[1735728212494,0.26022521,707.84,706.54,0.2830696]
[1735728212903,1.05985948,708.08,706.54,0.2830696]
[1735728212904,0.26022467,707.83,706.54,0.2830696]
[1735728213103,1.05985948,708.08,706.54,0.2830696]
[1735728213302,1.47624956,707.98,706.54,0.2830696]
[1735728213497,1.05985948,708.08,706.56,1.04834278]
[1735728213696,1.47618172,708.01,706.57,0.28305758]
[1735728215097,1.05985948,708.46,706.57,0.28305758]
[1735728215303,0.28231042,708.44,706.57,0.28305758]
[1735728215503,1.47611911,708.05,706.57,0.28305758]
[1735728215700,0.28231042,708.44,706.57,0.28305758]
[1735728215901,1.47609824,708.09,706.57,0.28305758]
[1735728216103,0.26014591,708.08,706.57,0.28305758]
[1735728216403,0.28231042,708.44,706.57,0.28305758]
[1735728216602,0.2601408,708.43,706.58,1.132]
[1735728217303,1.47584783,708.42,706.58,1.132]
[1735728217504,0.2601408,708.41,706.59,0.28304957]
[1735728217706,0.28233035,708.39,706.59,0.28304957]
[1735728217908,0.2601408,708.38,706.59,0.28304957]
[1735728218201,0.28234231,708.36,706.59,0.28304957]
[1735728218405,0.26014833,708.35,706.59,0.28304957]
[1735728218601,0.28235028,708.34,706.59,0.28304957]
[1735728218807,0.26014833,708.33,706.59,0.28304957]
[1735728219008,0.28235825,708.32,706.59,0.28304957]
[1735728219306,0.26014833,708.31,706.59,0.28304957]
[1735728219501,0.28237021,708.29,706.59,0.28304957]
[1735728219705,0.26014833,708.28,706.59,0.28304957]
[1735728219907,0.28237818,708.27,706.59,0.28304957]
[1735728220107,0.26014833,708.26,706.59,0.28304957]
[1735728220408,0.28238616,708.25,706.59,0.28304957]
[1735728220610,0.26014833,708.24,706.59,0.28304957]
[1735728220909,0.28239413,708.23,706.59,0.28304957]
[1735728221102,0.26014833,708.22,706.59,0.28304957]
[1735728221306,0.28240211,708.21,706.6,0.922]
[1735728221504,0.26014833,708.2,706.6,0.922]
[1735728221709,0.28241008,708.19,706.61,0.28304156]
[1735728221910,0.26014833,708.18,706.61,0.28304156]
[1735728222105,0.28241806,708.17,706.61,0.28304156]
[1735728222309,0.26014833,708.16,706.61,0.28304156]
[1735728222505,0.28242603,708.15,706.61,0.28304156]
[1735728222706,0.26014833,708.14,706.61,0.28304156]
[1735728222909,0.28243401,708.13,706.61,0.28304156]
[1735728223112,0.26014833,708.12,706.61,0.28304156]
[1735728223410,0.28244199,708.11,706.61,0.28304156]
[1735728223808,0.26016324,708.1,706.61,0.28304156]
[1735728224008,0.54260922,708.1,706.61,0.28304156]
[1735728224209,0.26017752,708.09,706.61,0.28304156]
[1735728224408,0.28244598,708.1,706.61,0.28304156]
[1735728227611,1.47581133,708.09,706.61,0.28304156]
[1735728227816,0.26014444,708.08,706.61,0.28304156]
[1735728230518,0.26015243,708.07,706.61,0.28304156]
[1735728230715,0.26015243,708.06,706.61,0.28304156]
[1735728230919,0.26015243,708.05,706.61,0.28304156]
[1735728231116,1.47581133,708.09,706.61,1.33138434]
[1735728231117,0.26015243,708.04,706.61,1.33138434]
[1735728231321,1.47581133,708.09,706.61,1.33138434]
[1735728231524,0.2601531,708.08,706.61,1.33138434]
[1735728231821,0.26015387,708.07,706.61,1.33138434]
[1735728232120,0.26015387,708.06,706.61,1.33138434]
[1735728232317,0.26015387,708.05,706.61,1.33138434]
[1735728232524,0.26015387,708.04,706.61,1.33138434]
[1735728232723,0.26015387,708.03,706.61,1.33138434]
[1735728232925,0.26015387,708.02,706.61,1.33138434]
[1735728233127,0.26015387,708.01,706.61,1.33138434]
[1735728233322,0.26015387,708.0,706.61,0.28304156]
[1735728233521,0.26015387,707.99,706.61,0.28304156]
[1735728233722,0.26015387,707.98,706.61,0.28304156]
[1735728233923,0.26015387,707.97,706.61,0.28304156]
[1735728234121,0.26015387,707.96,706.61,0.28304156]
[1735728234325,0.26015387,707.95,706.61,0.28304156]
[1735728234526,0.26020183,707.94,706.61,0.28304156]
[1735728234725,0.26020183,707.93,706.61,0.28304156]
[1735728234926,1.47581133,708.09,706.61,0.28304156]
[1735728235127,0.26020414,708.08,706.61,0.28304156]
[1735728236029,0.28245794,708.07,706.61,0.28304156]
[1735728236230,0.26020414,708.06,706.61,0.28304156]